Cogmind - Beta 13 X1 @@@ ROGUE MODE // 2023.07.31 @ 16:16:54 Player: Schmee Result: Destroyed by GD-AWO(R) with Subdweller Laser Performance ------------- Evolutions (0) 0 Regions Visited (3) 600 Robots Destroyed (20) 100 Value Destroyed (585) 585 Prototype IDs (0) 0 Alien Tech Used (0) 0 Bonus (0) 0 TOTAL SCORE: 1285 Bonus ------- None Cogmind --------- Core Integrity 0/250 Matter 227/300 Energy 100/100 System Corruption 0% Temperature Cool (12) Movement Treading (160) Location -10/Subcaves Parts ------- > --- POWER (1) -------- (None) > --- PROPULSION (2) --- Light Treads Light Treads > --- UTILITY (2) ------ Large Storage Unit Makeshift Armor Plating > --- WEAPON (2) ------- Battle Cannon > --- INVENTORY (15) --- Ion Engine Aluminum Leg Aluminum Leg Aluminum Leg Aluminum Leg Aluminum Leg Wheel Compact Wheel Sensor Array Signal Interpreter Light Armor Plating Hacking Suite Medium Laser Medium Laser Medium Laser Peak State ------------ > --- POWER ------------ Ion Engine > --- PROPULSION ------- Light Treads Light Treads > --- UTILITY ---------- Large Storage Unit Makeshift Armor Plating > --- WEAPON ----------- Barrage Gun Battle Cannon > --- INVENTORY -------- Ion Engine Aluminum Leg Aluminum Leg Aluminum Leg Aluminum Leg Aluminum Leg Wheel Compact Wheel Sensor Array Signal Interpreter Light Armor Plating Hacking Suite Medium Laser Medium Laser Medium Laser [Rating: 14] Favorites ----------- Power Ion Engine Engine Ion Engine Propulsion Aluminum Leg Treads Light Treads Leg Aluminum Leg Utility Large Storage Unit Device Sensor Array Storage Large Storage Unit Protection Light Armor Plating Weapon Light Assault Rifle Energy Gun Medium Laser Ballistic Gun Light Assault Rifle Ballistic Cannon Battle Cannon Build | -11 -10 -10 -10 ------- Run | Jun Mat Min Sub Slots Evolved . | . . . . Power . | . . . . Propulsion . | . . . . Utility . | . . . . Weapon . | . . . . Parts Attached 25 | . 18 . 7 Power 2 | . 2 . . Engine 2 | . 2 . . Core . | . . . . Reactor . | . . . . Propulsion 11 | . 9 . 2 Treads 2 | . . . 2 Leg 9 | . 9 . . Wheel . | . . . . Hover . | . . . . Flight . | . . . . Utility 6 | . 3 . 3 Device 2 | . 1 . 1 Storage 2 | . 2 . . Processor . | . . . . Hackware . | . . . . Protection 2 | . . . 2 Artifact . | . . . . Weapon 6 | . 4 . 2 Energy Gun 4 | . 4 . . Energy Cannon . | . . . . Ballistic Gun 1 | . . . 1 Ballistic Cannon 1 | . . . 1 Launcher . | . . . . Special Weapon . | . . . . Impact Weapon . | . . . . Slashing Weapon . | . . . . Piercing Weapon . | . . . . Special Melee Weapon . | . . . . Unidentified Prototypes . | . . . . Parts Lost 4 | . 2 . 2 Power 2 | . 1 . 1 Propulsion . | . . . . Utility . | . . . . Weapon 2 | . 1 . 1 Highest Loss Streak 2 | . 1 . 2 To Critical Strikes . | . . . . Average Slot Usage (%) 94 | . 90 100 99 Engine 13 | . 14 14 13 Treads 9 | . . . 27 Leg 18 | . 27 28 . Device 6 | . 5 14 6 Storage 14 | . 14 14 14 Protection 2 | . . . 7 Energy Gun 14 | . 10 28 19 Ballistic Gun 10 | . 16 . . Ballistic Cannon 2 | . . . 7 Naked Turns . | . . . . Heaviest Build 107 | 10 107 31 33 Greatest Support 40 | 20 20 20 40 Greatest Overweight (x) 5 | . 5 1 1 Average Overweight (x) . | . . 1 . Largest Inventory Capacity 25 | 8 25 15 15 Average Capacity 14 | 8 14 15 15 Most Carried 15 | 6 15 15 15 Average Carried 13 | 6 12 15 14 Final Capacity 15 | 8 15 15 15 Final Carried 15 | 6 15 15 15 Class Distribution -------------------- 79% | Mutant 20% | Scavenger-Mutant Dominant Class ---------------- Mutant | -10/Materials Scavenger-Mutant | -10/Mines Mutant | -10/Subcaves Resources | -11 -10 -10 -10 ----------- Run | Jun Mat Min Sub Matter Collected 500 | 200 250 . 50 Remotely . | . . . . Salvage Created 661 | . 469 42 150 Parts 38 | . 27 3 8 Haulers Intercepted 1 | . 1 . . Recyclers Shooed 1 | . 1 . . Parts Field Recycled . | . . . . Retrieved Matter . | . . . . Parts Self-Destructed . | . . . . Prevented . | . . . . Kills | -11 -10 -10 -10 ------- Run | Jun Mat Min Sub Combat Hostiles Destroyed 16 | . 9 3 4 Guns 14 | . 9 3 2 Cannons 2 | . . . 2 Classes Destroyed 6 | . 4 1 1 Hauler 1 | . 1 . . Operator 1 | . 1 . . Watcher 2 | . 2 . . Swarmer 3 | . . 3 . Grunt 9 | . 9 . . Subdweller 4 | . . . 4 Best Kill Streak 3 | . 3 3 2 Combat Bots Only 3 | . 2 3 2 Max Kills in Single Turn 1 | . 1 1 1 Gunslinging . | . . . . Exploded . | . . . . Melee . | . . . . Uniques/NPCs Destroyed . | . . . . Combat | -11 -10 -10 -10 -------- Run | Jun Mat Min Sub Damage Taken 1309 | . 693 62 554 Core 266 | . 186 14 66 Absorbed by Shields . | . . . . Core Remaining (%) 100 | 100 . . . Volleys Fired 70 | . 50 4 16 Largest 2 | . 2 2 2 Hottest 115 | . 90 115 115 Shots Fired 134 | . 94 8 32 Gun 127 | . 94 8 25 Cannon 7 | . . . 7 Launcher . | . . . . Special . | . . . . Kinetic 93 | . 79 . 14 Thermal 41 | . 15 8 18 Explosive . | . . . . Electromagnetic . | . . . . Robot Hit Streak 21 | . 10 3 21 Robot Miss Streak 3 | . 3 1 1 Penetration Max . | . . . . Secondary Targets 1 | . . 1 . Max Gunslinging Chain 1 | . . 1 . Shots Hit Robots 95 | . 62 5 28 Core Hits 43 | . 33 3 7 Critical Kills . | . . . . Critical Parts Destroyed . | . . . . Critical Strikes . | . . . . Melee Attacks . | . . . . Impact . | . . . . Slashing . | . . . . Piercing . | . . . . Sneak Attacks . | . . . . Combat Hostiles . | . . . . Follow-up Attacks . | . . . . Damage Inflicted 1039 | . 549 86 404 Guns 914 | . 539 86 289 Cannons 115 | . . . 115 Explosions . | . . . . Melee . | . . . . Ramming 10 | . 10 . . Kinetic 618 | . 411 . 207 Thermal 411 | . 128 86 197 Explosive . | . . . . Electromagnetic . | . . . . Impact . | . . . . Slashing . | . . . . Piercing . | . . . . Highest Corruption . | . . . . Average Corruption . | . . . . Corruption Purged . | . . . . Corruption Blocked . | . . . . Overload Shots . | . . . . Overflow Damage . | . . . . Projectiles . | . . . . Explosions . | . . . . Melee . | . . . . Knockbacks . | . . . . Impact . | . . . . Kinetic . | . . . . Secondary . | . . . . Self-Inflicted Damage . | . . . . Shots . | . . . . Rammed . | . . . . Targets Rammed 1 | . 1 . . Kicked 1 | . 1 . . Crushed . | . . . . Highest Temperature 216 | . 165 216 33 Average Temperature 40 | . 32 110 13 Received Heat Transfer 474 | . 363 . 111 Siege Activations . | . . . . Robots Corrupted . | . . . . Combat Hostiles . | . . . . Parts Fried . | . . . . Impact Corruptions . | . . . . Robots Melted . | . . . . Combat Hostiles . | . . . . Parts Melted 2 | . . . 2 Heat Transferred 1039 | . 299 222 518 Parts Sabotaged . | . . . . Parts Stolen . | . . . . Parts Stripped . | . . . . Power Chain Reactions . | . . . . Missiles Intercepted . | . . . . Alert | -11 -10 -10 -10 ------- Run | Jun Mat Min Sub Peak Influence 170 | . 170 70 . Initial . | . . . . Average 57 | . 57 64 . Maximum Alert Level . | . . . . Low Security (%) 100 | 100 100 100 . Level 1 . | . . . . Level 2 . | . . . . Level 3 . | . . . . Level 4 . | . . . . Level 5 . | . . . . High Security . | . . . . Max Security . | . . . . Squads Dispatched 1 | . 1 . . Investigation 1 | . 1 . . Extermination . | . . . . Reinforcement . | . . . . Assault . | . . . . Garrison . | . . . . Intercept . | . . . . Searches Triggered . | . . . . Construction Impeded . | . . . . Haulers Reinforced . | . . . . Active Scanning Responses . | . . . . Cargo Convoy Interrupts . | . . . . Stealth | -11 -10 -10 -10 --------- Run | Jun Mat Min Sub Distress Signals 1 | . 1 . . Communications Jammed . | . . . . Distress Signals . | . . . . Times Spotted 24 | . 15 3 6 Peak Tracking Total 4 | . 4 3 4 Tactical Retreats . | . . . . Traps | -11 -10 -10 -10 ------- Run | Jun Mat Min Sub Traps Triggered 3 | . 3 . . Indirectly . | . . . . Trap Hack Attempts . | . . . . Triggered . | . . . . Disarmed . | . . . . Reprogrammed . | . . . . Reused . | . . . . Traps Extracted . | . . . . Installed . | . . . . Triggered . | . . . . Machines | -11 -10 -10 -10 ---------- Run | Jun Mat Min Sub Machines Disabled . | . . . . Max in Single Turn . | . . . . Machines Repaired . | . . . . Machines Sabotaged . | . . . . Overloaded Fab Kills . | . . . . Hacking | -11 -10 -10 -10 --------- Run | Jun Mat Min Sub Machines Accessed . | . . . . Terminals . | . . . . Fabricators . | . . . . Repair Stations . | . . . . Recycling Units . | . . . . Scanalyzers . | . . . . Garrison Access . | . . . . Total Hacks . | . . . . Successful . | . . . . Failed . | . . . . Catastrophic . | . . . . Database Lockouts . | . . . . Manual . | . . . . Terminals . | . . . . Fabricators . | . . . . Repair Stations . | . . . . Recycling Units . | . . . . Scanalyzers . | . . . . Garrison Access . | . . . . Terminal Hacks . | . . . . Fabricator Hacks . | . . . . Repair Station Hacks . | . . . . Recycling Unit Hacks . | . . . . Scanalyzer . | . . . . Garrison Access Hacks . | . . . . Unauthorized Hacks . | . . . . Terminals . | . . . . Fabricators . | . . . . Repair Stations . | . . . . Recycling Units . | . . . . Scanalyzers . | . . . . Garrison Access . | . . . . Data Cores Recovered 1 | . 1 . . Used . | . . . . Hacking Detections . | . . . . Full Trace Events . | . . . . Feedback Events . | . . . . Feedback Blocked . | . . . . Robot Schematics Acquired . | . . . . Robots Built . | . . . . Authchips . | . . . . Time . | . . . . Total Robot Build Rating . | . . . . Part Schematics Acquired . | . . . . Parts Built . | . . . . Authchips . | . . . . Time . | . . . . Total Part Build Rating . | . . . . Parts Repaired . | . . . . Time . | . . . . Parts Recycled . | . . . . Recycled Matter . | . . . . Retrieved Matter . | . . . . Retrieved Components . | . . . . Parts Scanalyzed . | . . . . Part Schematics Acquired . | . . . . Parts Damaged . | . . . . Bothacking | -11 -10 -10 -10 ------------ Run | Jun Mat Min Sub Used RIF Installer . | . . . . Robots Hacked . | . . . . Non-combat . | . . . . Combat . | . . . . Robot Hacks Applied . | . . . . Relay Couplers Released . | . . . . Fabnet Peak Effective % . | . . . . Robots Rewired . | . . . . Allies Hacked . | . . . . Hacks Repelled . | . . . . Allies | -11 -10 -10 -10 -------- Run | Jun Mat Min Sub Total Allies . | . . . . Largest Group . | . . . . Highest-Rated Group . | . . . . Highest-Rated Ally . | . . . . Total Orders . | . . . . Ally Attacks . | . . . . Total Damage . | . . . . Kills . | . . . . Allies Corrupted . | . . . . Allies Melted . | . . . . Intel | -11 -10 -10 -10 ------- Run | Jun Mat Min Sub Robot Analysis Total . | . . . . Derelict Logs Recovered 1 | . . . 1 Drone Launches . | . . . . Drone Recoveries . | . . . . Exploration | -11 -10 -10 -10 ------------- Run | Jun Mat Min Sub Turns Passed 1472 | 3 869 89 511 Spaces Moved 655 | 3 366 41 245 Core . | . . . . Treads 242 | . . . 242 Legs 413 | 3 366 41 3 Wheels . | . . . . Hover . | . . . . Flight . | . . . . Fastest Speed 120 | 120 120 190 160 Average Speed 172 | 120 179 190 160 Slowest Speed 470 | 120 470 190 190 Overloaded Moves . | . . . . Propulsion Burnouts . | . . . . Robots Hopped . | . . . . Cave-ins Triggered . | . . . . Exploration Rate (%) 22 | 2 57 10 19 Regions Visited 3 Branch Regions 2 Pre-discovered Areas 1 | . . . 1 Known Exits Taken . | . . . . Unknown Exits Taken 3 | 1 1 1 . Scrap Searched 1 | . . . 1 Spaces Dug . | . . . . Terrain Destroyed . | . . . . Melee . | . . . . Projectile . | . . . . AOE . | . . . . Terrain Rammed . | . . . . Walls Destroyed . | . . . . Machines Disabled . | . . . . Actions | -11 -10 -10 -10 --------- Run | Jun Mat Min Sub Total 879 | 2 499 45 333 Wait 104 | . 47 1 56 Move 652 | 2 365 40 245 Hop . | . . . . Pick Up 11 | . 7 . 4 Fast Attach 8 | . 7 . 1 Attach 4 | . 2 . 2 Detach 3 | . 3 . . Swap 13 | . 9 . 4 Drop 13 | . 8 . 5 Fire 70 | . 50 4 16 Melee . | . . . . Ram . | . . . . Kick 1 | . 1 . . Crush . | . . . . Escape Stasis . | . . . . Rewire . | . . . . Trap . | . . . . Miscellaneous . | . . . . Route ------- -11/Junkyard -10/Materials -10/Mines -10/Subcaves History --------- Turn | Location | Event 1 | -11/Junkyard | Discovered new exit (range 3) 4 | -11/Junkyard | Entered Materials 291 | -10/Materials | Discovered new exit (range 9) 334 | -10/Materials | Build established: Mutant 432 | -10/Materials | Core integrity fell below 50% 873 | -10/Materials | Entered Mines 936 | -10/Mines | Discovered new exit (range 10) 962 | -10/Mines | Entered Subcaves 1078 | -10/Subcaves | Core integrity fell below 20% 1119 | -10/Subcaves | Learned location of Storage (-9) 1473 | -10/Subcaves | Destroyed by GD-AWO(R) with Subdweller Laser Last Messages --------------- 01093_ Sub. Power Source melted. 01093_ 0B-YIW(R) destroyed. 01096_ Acquired 2 matter. 01119_ Acquired derelict log, extracted data. World map updated: -9/Storage. 01191_ Dropped Particle Gun. 01191_ Acquired Battle Cannon. 01199_ Acquired 5 matter. 01343_ Dropped Lgt. Armor Plating. 01343_ Acquired Mak. Armor Plating. 01369_ Searching scrap... 01369_ Found Barrage Gun. 01369_ Found 16 Matter. 01370_ Acquired 10 matter. 01370_ Dropped Aluminum Leg. 01372_ Acquired Barrage Gun. 01456_ Ion Engine destroyed. 01459_ W8-357(R) destroyed. 01462_ LR-HQ9(R) destroyed. 01471_ Barrage Gun destroyed. Map ----- +----------------------------------------------------+ | ???????????????????????????????????????????? | | ???????????????????????????????????????????? | | ???????????????????????????????????????????? | | ???????????????????????????????????????????? | | ???????????????????????????????????????????? | | ???????????????????????????????????????????? | | ???????????????????????????????????????????? | | ???????????????????????????????????????????? | | ???????????????????????????????????????????? | | ???????????????????????????????????????????? | | ???????????????????????????????????????????? | | ???????????????????????????????????????????? | | ???????????????????????????????????????????? | | ?????????????????" ????????????????????????? | | ?????????????????# ????????????????????????? | | ?????????????????# ????????????????????????? | | ?????????????????# ????????????????????????? | | ?????????????????# ????????????????????????? | | ????????????????## ##??????????????????????? | | ????????????????? ""??????????????????????? | | ????????????????? ??????????????????????? | | ?????????????????# ??????????????????????? | | ?????????????????#%%#??????????????????????? | | ????????????????##["#??????????????????????? | | ????????????????#=RR#??????????????????????? | | ????????????????#"[@#??????????????????????? | | ????????????????#%! #?????????????###??????? | | ????????????????# #????????????? #??????? | | ????????????????# #????????????? ######?? | | ????????????????## ###????###???? ! ??? | | ?????????????????# ##??## ##??? ???? | | ?????????????????# #??# ##?? ?????? | | ?????????????????## #???# ### #???????? | | ??????????????????## ##### #????????? | | ???????????????????## # # ##????????? | | ???????????????????# # ##?????????? | | ???????????????###### ##?????????? | | ???????????????# ## ## #?????????? | | ???????????????# ####= #?????????? | | ???????????????# % ### #?????????? | | ???????????????# #### ??????? | | ???????????????# ## ## #?## ???? | | ???????????????# ???# ###?? ????? | | ??????????????????### ##?# ??? | | ??????????????????# #??# ## #?? | | ??????????????????## #??? ##?? ??? | | ???????????????????###### ##???##????#??? | | ????????????????????????## ##?????????????? | | ?????????????????????????## ##?????????????? | | ?????????????????????????## #?????????????? | +----------------------------------------------------+ Best States ------------- Heat Dissipation 25 Energy Generation 10 Energy Capacity 250 Matter Stores 300 Matter Capacity 300 Sight Range 16 Robot Scan Range 14 Terrain Scan Density 10 Armor Coverage 150 Evasion (%) 55 Recoil Reduction 2 Item Schematics ----------------- None Robot Schematics ------------------ None Fabricated ------------ Nothing Alien Tech Used ----------------- None Achievements -------------- None Challenges ------------ None Game ------ Seed FieldContainmentBoregun Manual? 0 Play Time 00:12:29 Cumulative 41.5 hours Start 2023.07.31 @ 16:04:05 End 2023.07.31 @ 16:16:54 Sessions 1 Manual Loads 0 Difficulty Rogue Special Mode None Game No. 27 Rogue 27 Adventurer 0 Explorer 0 Win Type - Total 1 Types 1/0/0/0/0/0/0/0/0 Lore% 23 Gallery% 43 Achievement% 29 Wizard Run 0 Options --------- ASCII 0 Keyboard 1 Movement Numpad Keybinds 0 Fullscreen 1 Font 24/Smallcaps Map View 76x50 Tactical HUD 1 Map Filters NONE Filters NONE Steam 1 RUN: 22ba9736-1222-4a17-8106-bd0e424b6dd3